bitfinex/quotes_SOLUSD_20251024
["timestamp","ask_amount","ask_price","bid_price","bid_amount"]
[1761335526309,38.34732164,193.28,193.23,0.67]
[1761335527102,36.18,193.28,193.23,2.89732164]
[1761335527303,2.22732164,193.3,193.24,2.22732164]
[1761335527516,36.16,193.29,193.25,5.17464424]
[1761335527718,36.16,193.29,193.25,8.07196588]
[1761335527934,36.16,193.29,193.26,0.67]
[1761335528424,38.38732164,193.3,193.26,0.67]
[1761335528623,2.22732164,193.3,193.26,0.67]
[1761335528820,2.22732164,193.29,193.26,0.67]
[1761335529404,2.22732164,193.29,193.26,62.67]
[1761335529626,2.22732164,193.29,193.26,67.84437202]
[1761335529818,36.85,193.3,193.26,67.84437202]
[1761335529819,2.22732164,193.27,193.26,62.0]
[1761335531516,2.91732164,193.27,193.26,62.0]
[1761335532110,8.09143039,193.27,193.26,62.0]
[1761335533919,8.09143039,193.27,193.22,5.17533438]
[1761335534120,2.22732164,193.25,193.22,5.84533438]
[1761335534423,38.38732164,193.26,193.23,0.67]
[1761335535442,2.22732164,193.25,193.21,62.0]
[1761335535745,2.22732164,193.25,193.22,0.67]
[1761335536528,2.22732164,193.25,193.22,5.84538185]
[1761335536724,2.22732164,193.25,193.22,0.67]
[1761335537047,2.22732164,193.24,193.22,0.67]
[1761335537220,42.02438994,193.26,193.22,62.67]
[1761335537221,2.22732164,193.25,193.22,62.67]
[1761335537420,2.22732164,193.24,193.22,62.0]
[1761335538339,2.22732164,193.23,193.22,62.0]
[1761335538734,3.48510245,193.23,193.22,62.0]
[1761335538935,4.17510245,193.23,193.22,62.0]
[1761335539134,0.69,193.23,193.22,62.0]
[1761335539346,39.62510245,193.23,193.22,62.0]
[1761335539535,40.33510245,193.23,193.22,62.0]
[1761335540532,58.44823187,193.23,193.17,0.2]
[1761335540727,3.48510245,193.18,193.17,0.2]
[1761335541033,39.64510245,193.18,193.17,0.2]
[1761335541240,40.35510245,193.18,193.17,0.2]
[1761335542232,45.53162175,193.18,193.17,0.2]
[1761335542444,9.37162175,193.18,193.17,0.2]
[1761335542650,3.48510245,193.18,193.17,0.2]
[1761335542949,39.64510245,193.18,193.17,0.2]
[1761335543147,40.35510245,193.18,193.17,0.2]
[1761335543753,3.48510245,193.18,193.17,0.2]
[1761335543958,39.64510245,193.18,193.17,0.2]
[1761335544344,40.35510245,193.18,193.17,0.2]
[1761335544558,39.64510245,193.18,193.17,0.2]
[1761335545851,22.88,193.22,193.17,6.09673464]
[1761335546165,11.58647521,193.25,193.17,68.09673464]
[1761335546166,3.48510245,193.21,193.17,68.09673464]
[1761335546756,36.87,193.23,193.17,68.09673464]
[1761335546968,3.48510245,193.22,193.17,68.09673464]
[1761335547140,3.48510245,193.21,193.17,68.09673464]
[1761335547457,3.48510245,193.2,193.17,68.09673464]
[1761335547951,0.71,193.19,193.17,62.2]
[1761335548251,3.48510245,193.2,193.17,62.2]
[1761335548463,3.48510245,193.18,193.17,62.2]
[1761335548644,39.64510245,193.18,193.17,0.2]
[1761335548835,40.35510245,193.18,193.17,0.2]
[1761335549238,40.35510245,193.18,193.12,0.2]
[1761335549239,22.88,193.16,193.12,0.2]
[1761335549534,33.75647521,193.1,193.0,2.70221149]
[1761335549738,3.48510245,193.01,192.99,0.1]
[1761335549942,3.48510245,193.05,193.0,0.72]
[1761335550143,0.71,193.09,193.0,0.72]
[1761335550345,3.48510245,193.06,193.0,0.72]
[1761335550547,35.86510245,193.06,193.0,4.20510245]
[1761335550742,3.48510245,193.06,193.01,0.72]
[1761335550964,39.72510245,193.07,193.01,0.72]
[1761335551866,39.72510245,193.07,193.02,5.18081027]
[1761335552157,3.48510245,193.07,193.03,0.72]
[1761335552358,3.48510245,193.09,193.03,4.20510245]
[1761335552561,0.71,193.15,193.05,3.48510245]
[1761335552745,3.48510245,193.11,193.06,0.72]
[1761335553661,3.48510245,193.1,193.07,5.17946858]
[1761335554369,3.48510245,193.1,193.08,0.72]
[1761335554545,3.48510245,193.09,193.08,62.72]
[1761335554742,3.48510245,193.1,193.08,62.72]
[1761335555655,3.48510245,193.1,193.08,62.0]
[1761335556346,3.48510245,193.1,193.08,62.72]
[1761335558955,3.48510245,193.1,193.08,62.0]
[1761335563469,3.48510245,193.11,193.09,0.72]
[1761335563671,39.72510245,193.12,193.09,0.72]
[1761335563973,3.48510245,193.12,193.09,5.89892322]
[1761335564167,39.70510245,193.15,193.1,0.72]
[1761335564371,39.70510245,193.15,193.1,62.72]
[1761335564769,39.70510245,193.15,193.11,0.72]
[1761335564962,3.48510245,193.15,193.11,0.72]
[1761335565163,39.72510245,193.15,193.11,0.72]
[1761335565672,39.72510245,193.15,193.11,5.89829485]
[1761335566053,3.48510245,193.15,193.11,5.89829485]
[1761335566256,28.05647497,193.19,193.12,0.72]
[1761335566464,13.65008873,193.2,193.12,4.20510245]
[1761335566465,39.72510245,193.18,193.12,4.20510245]
[1761335566687,3.48510245,193.17,193.13,0.72]
[1761335567992,3.48510245,193.17,193.14,5.17759138]
[1761335568192,5.1757557,193.21,193.14,67.17759138]
[1761335568394,39.72510245,193.19,193.14,67.17759138]
[1761335568584,39.72510245,193.19,193.15,0.72]
[1761335568788,3.48510245,193.2,193.15,0.72]
[1761335569079,3.48510245,193.21,193.15,0.72]
[1761335570165,3.48510245,193.21,193.16,5.17705529]
[1761335570575,3.48510245,193.21,193.17,0.7]
[1761335572079,3.48510245,193.21,193.18,5.1765193]
[1761335572467,3.48510245,193.21,193.19,0.7]
[1761335572782,3.48510245,193.22,193.19,0.7]
[1761335573863,3.48510245,193.22,193.19,5.87618389]
[1761335574469,3.48510245,193.22,193.19,5.17618389]
[1761335575578,3.48510245,193.22,193.18,0.7]
[1761335576478,3.48510245,193.22,193.18,5.8763725]
[1761335576673,3.48510245,193.22,193.18,170.1763725]
[1761335577086,3.48510245,193.22,193.19,0.69]
[1761335578476,3.48510245,193.22,193.19,5.8661948]
[1761335578796,3.48510245,193.25,193.2,0.69]
[1761335578975,39.66510245,193.25,193.2,62.69]
[1761335579179,36.18,193.25,193.2,66.17510245]
[1761335579370,3.48510245,193.26,193.21,0.69]
[1761335579689,3.48510245,193.26,193.21,62.69]
[1761335579690,39.66510245,193.26,193.21,62.69]
[1761335580193,36.18,193.26,193.22,18.80406686]
[1761335580384,0.7,193.28,193.22,5.86544767]
[1761335580385,3.48510245,193.27,193.22,5.86544767]
[1761335580572,3.48510245,193.27,193.23,0.69]
[1761335580772,39.66510245,193.28,193.23,62.69]
[1761335580997,36.18,193.28,193.23,62.69]
[1761335581197,39.66510245,193.29,193.24,0.69]
[1761335581498,39.66510245,193.29,193.24,62.69]
[1761335581890,3.48510245,193.29,193.25,0.69]
[1761335582074,39.66510245,193.3,193.26,5.17437648]
[1761335582275,5.87304978,193.31,193.26,5.17437648]
[1761335582276,3.48510245,193.31,193.26,67.17437648]
[1761335582493,3.48510245,193.31,193.27,0.69]
[1761335583182,4.18510245,193.31,193.27,0.69]
[1761335583773,3.48510245,193.31,193.27,5.86405636]
[1761335583973,3.48510245,193.31,193.28,0.69]
[1761335584195,3.48510245,193.31,193.28,62.69]
[1761335584495,3.48510245,193.31,193.28,62.0]
[1761335584801,3.48510245,193.31,193.28,62.69]
[1761335585103,4.18510245,193.31,193.28,62.0]
[1761335585778,3.48510245,193.31,193.28,62.0]
[1761335585984,3.48510245,193.31,193.28,62.69]
[1761335586787,3.48510245,193.33,193.29,0.69]
[1761335586983,3.48510245,193.34,193.29,0.69]
[1761335587282,39.64510245,193.35,193.29,0.69]
[1761335587490,39.64510245,193.35,193.29,62.69]
[1761335587697,39.64510245,193.35,193.3,0.69]
[1761335588003,3.48510245,193.34,193.3,0.69]
[1761335588300,4.18510245,193.34,193.3,0.69]
[1761335588692,3.48510245,193.34,193.3,0.69]
[1761335589477,3.48510245,193.34,193.3,5.86328237]
[1761335589674,3.48510245,193.34,193.31,0.69]
[1761335590295,3.48510245,193.34,193.29,62.0]
[1761335590484,3.48510245,193.33,193.31,0.69]
[1761335591275,41.31199147,193.35,193.31,0.69]
[1761335591479,3.48510245,193.33,193.31,0.69]
[1761335592376,4.18510245,193.32,193.31,62.0]
[1761335593589,4.18510245,193.32,193.27,62.0]
[1761335593791,3.48510245,193.28,193.27,62.0]
[1761335598701,39.62510245,193.29,193.27,62.0]
[1761335600706,2.2293761,193.28,193.27,62.0]
[1761335600900,41.31380843,193.29,193.25,0.72]
[1761335601202,38.3693761,193.28,193.26,0.72]
[1761335601407,2.2293761,193.27,193.23,0.72]
[1761335601590,2.2293761,193.27,193.23,165.02]
[1761335601779,38.3693761,193.27,193.23,170.19496451]
[1761335602102,38.3493761,193.27,193.23,170.19496451]
[1761335602309,39.0393761,193.27,193.23,170.19496451]
[1761335602691,2.2293761,193.25,193.23,62.0]
[1761335603001,0.69,193.26,193.23,62.0]
[1761335603885,36.14,193.25,193.24,0.72]
[1761335605214,2.2293761,193.26,193.24,0.72]
[1761335605589,36.12,193.26,193.24,0.72]
[1761335607714,2.2293761,193.27,193.24,0.72]
[1761335607914,2.2293761,193.28,193.24,5.89490276]
[1761335608230,36.12,193.27,193.24,5.89490276]
[1761335608406,36.12,193.27,193.25,0.72]
[1761335608710,2.2293761,193.31,193.25,62.72]
[1761335608892,36.12,193.3,193.25,165.02]
[1761335609092,36.12,193.3,193.26,0.72]
[1761335609494,38.3493761,193.3,193.26,0.72]
[1761335609689,43.52269166,193.3,193.26,0.72]
[1761335610307,39.0393761,193.3,193.26,5.89427245]
[1761335611109,2.2293761,193.29,193.25,169.47463663]
[1761335611300,2.2293761,193.28,193.25,164.3]
[1761335611500,2.2293761,193.28,193.25,165.02]
[1761335611892,36.12,193.3,193.26,0.72]
[1761335612095,2.2293761,193.32,193.26,165.02]
[1761335612396,2.2293761,193.31,193.26,165.02]
[1761335612604,38.3493761,193.32,193.27,0.72]
[1761335613111,39.0393761,193.32,193.27,0.72]
[1761335613312,2.2293761,193.3,193.27,0.72]
[1761335613496,2.2293761,193.29,193.26,164.3]
[1761335613700,38.3493761,193.29,193.26,165.02]
[1761335614097,36.12,193.29,193.26,164.3]
[1761335614311,36.12,193.29,193.27,0.72]
[1761335614505,36.12,193.29,193.26,164.3]
[1761335614506,7.40275353,193.3,193.26,165.02]
[1761335614712,44.21275353,193.3,193.26,165.02]
[1761335615007,2.2293761,193.3,193.26,169.47429888]
[1761335615210,12.92897899,193.37,193.27,0.72]
[1761335615408,2.2293761,193.32,193.27,0.72]
[1761335615610,36.12,193.31,193.27,165.02]
[1761335615812,38.3493761,193.31,193.27,165.02]
[1761335616111,38.3493761,193.31,193.28,0.72]
[1761335616504,0.69,193.3,193.27,164.3]
[1761335616706,41.98306705,193.31,193.27,165.02]
[1761335617414,44.21244315,193.31,193.27,165.02]
[1761335617616,41.98306705,193.31,193.27,165.02]
[1761335617799,36.12,193.31,193.28,0.72]
[1761335617996,36.12,193.32,193.28,5.89370871]
[1761335618408,36.81,193.32,193.28,5.89370871]
[1761335619218,41.98283792,193.32,193.28,5.89370871]
[1761335620004,36.1,193.31,193.28,5.89370871]
[1761335620208,5.7747025,193.38,193.29,0.72]
[1761335620398,0.69,193.35,193.29,62.72]
[1761335621322,0.69,193.35,193.3,5.89312366]
[1761335622023,5.86197346,193.35,193.3,5.89312366]
[1761335622412,5.17197346,193.35,193.3,5.89312366]
[1761335622721,5.86197346,193.35,193.3,5.89312366]
[1761335623197,0.69,193.35,193.3,8.12249976]
[1761335623710,5.86197514,193.35,193.28,0.72]
[1761335623912,36.14,193.34,193.29,0.72]
[1761335624104,36.83,193.34,193.29,62.72]
[1761335624304,36.83,193.34,193.3,0.72]
[1761335624305,36.14,193.33,193.3,0.72]
[1761335625198,36.14,193.33,193.3,5.89317069]
[1761335626315,36.14,193.33,193.31,5.89299812]
[1761335626514,5.86177129,193.36,193.31,5.89299812]
[1761335626720,36.12,193.35,193.32,0.72]
[1761335627119,36.12,193.35,193.32,62.0]
[1761335627512,36.12,193.36,193.33,0.72]
[1761335627702,36.12,193.36,193.33,62.72]
[1761335628430,36.12,193.36,193.33,67.89242064]
[1761335630813,5.86141765,193.38,193.33,67.17242064]
[1761335631021,36.1,193.37,193.34,0.69]
[1761335631929,36.1,193.37,193.34,5.86215263]
[1761335632230,36.1,193.37,193.33,67.17247351]
[1761335632525,0.68,193.36,193.33,62.0]
[1761335633514,5.85120478,193.38,193.33,62.69]
[1761335633705,0.2,193.39,193.34,0.69]
[1761335633908,36.3,193.39,193.34,0.69]
[1761335634106,36.3,193.39,193.34,5.86202543]
[1761335634334,36.98,193.39,193.34,5.86202543]
[1761335634512,42.15094305,193.39,193.35,0.69]
[1761335635119,36.78,193.38,193.33,62.0]
[1761335635508,0.68,193.37,193.33,67.17246778]
[1761335635725,36.1,193.36,193.33,67.86246778]
[1761335635922,6.05094305,193.39,193.34,0.69]
[1761335636115,36.1,193.37,193.34,5.86217048]
[1761335636317,6.05094305,193.39,193.34,5.86217048]
[1761335636318,0.88,193.39,193.34,5.86217048]
[1761335636515,0.2,193.39,193.35,2.9193761]
[1761335636718,0.2,193.39,193.36,0.69]
[1761335637034,0.2,193.39,193.36,62.69]
[1761335637419,0.2,193.39,193.37,0.69]
[1761335637622,0.2,193.39,193.37,62.69]
[1761335638125,0.2,193.39,193.37,67.86138766]
[1761335639427,0.2,193.39,193.37,67.17138766]
[1761335640441,0.2,193.39,193.37,67.86138766]
[1761335641038,0.2,193.39,193.37,67.17138766]
[1761335641918,0.2,193.39,193.37,67.86138766]
[1761335643226,0.2,193.39,193.38,0.69]
[1761335644844,0.2,193.39,193.38,2.9193761]
[1761335645237,0.2,193.39,193.38,8.09054168]
[1761335645645,0.2,193.39,193.38,44.17054168]
[1761335646228,0.2,193.39,193.38,208.47054168]
[1761335646631,0.2,193.39,193.38,206.24116558]
[1761335646931,0.2,193.39,193.38,208.47054168]
[1761335651044,0.69,193.46,193.42,61.8]
[1761335651646,5.85909079,193.46,193.42,61.8]
[1761335652231,0.69,193.45,193.42,61.8]
[1761335652947,0.2,193.48,193.43,0.69]
[1761335653279,0.2,193.48,193.47,2.2293761]
[1761335653548,0.2,193.48,193.47,61.2093761]
[1761335653726,0.2,193.48,193.47,61.8993761]
[1761335653930,0.2,193.48,193.47,72.77585131]
[1761335654126,0.2,193.51,193.5,22.88]
[1761335654334,0.2,193.51,193.5,72.60264717]
[1761335654521,0.2,193.51,193.5,62.41617196]
[1761335654935,0.2,193.51,193.5,87.37811022]
[1761335655459,1e-08,193.52,193.51,11.56647521]
[1761335655638,1e-08,193.52,193.51,13.79585131]
[1761335656252,1e-08,193.54,193.53,10.87647521]
[1761335656450,1e-08,193.54,193.53,50.43256706]
[1761335657042,0.1,193.57,193.56,38.92283189]
[1761335657352,0.1,193.57,193.56,78.47884365]
[1761335658754,0.1,193.57,193.56,77.96220799]
[1761335659438,0.1,193.57,193.56,78.47884365]
[1761335660759,0.1,193.57,193.56,79.71959828]
[1761335662044,0.1,193.57,193.56,75.73283189]
[1761335662253,0.1,193.57,193.56,68.32648741]
[1761335662840,8.73488712,193.62,193.59,61.6]
[1761335663353,0.68,193.61,193.59,61.6]
[1761335665265,0.1,193.62,193.59,61.6]
[1761335665649,0.78,193.62,193.59,61.6]
[1761335667041,5.26479,193.62,193.59,61.6]
[1761335667243,5.94479,193.62,193.59,61.6]
[1761335667442,0.68,193.61,193.59,61.6]
[1761335671947,5.84507397,193.61,193.59,61.6]
[1761335672360,0.68,193.6,193.59,61.6]
[1761335672759,3.57013073,193.62,193.59,61.6]
[1761335672951,0.68,193.61,193.59,61.6]
[1761335673165,4.15013073,193.61,193.59,61.6]
[1761335673384,3.47013073,193.6,193.59,61.6]
[1761335673550,9.31541998,193.6,193.59,61.6]
[1761335675770,4.15013073,193.6,193.59,61.6]
[1761335676773,22.22864312,193.6,193.55,61.6]
[1761335676976,3.47013073,193.57,193.51,5.837445]
[1761335677272,3.47013073,193.57,193.51,67.837445]
[1761335677574,4.15013073,193.56,193.51,67.837445]
[1761335677757,3.47013073,193.55,193.51,62.0]
[1761335677963,3.47013073,193.54,193.51,62.0]
[1761335678263,4.15013073,193.54,193.51,62.0]
[1761335679160,4.15013073,193.53,193.51,62.0]
[1761335679767,3.47013073,193.54,193.51,62.0]
[1761335680293,3.47013073,193.52,193.49,62.0]
[1761335680470,3.47013073,193.5,193.43,62.0]
[1761335680773,59.62,193.53,193.44,4.14013073]
[1761335680774,3.47013073,193.49,193.44,4.14013073]
[1761335680950,0.68,193.48,193.44,0.67]
[1761335681155,4.15013073,193.48,193.44,0.67]
[1761335682051,3.47013073,193.49,193.44,5.83955737]
[1761335682260,0.68,193.54,193.46,3.47013073]
[1761335682478,3.47013073,193.53,193.47,4.14013073]
[1761335682777,9.31622051,193.57,193.5,3.47013073]
[1761335682973,4.15013073,193.56,193.5,66.14013073]
[1761335683271,3.47013073,193.55,193.5,62.67]
[1761335683684,3.47013073,193.55,193.51,0.67]
[1761335683983,9.31648847,193.56,193.51,5.83764302]
[1761335684282,5.84635774,193.56,193.51,0.67]
[1761335684676,0.68,193.55,193.5,65.47013073]
[1761335684884,3.47013073,193.54,193.5,62.0]
[1761335685287,3.47013073,193.52,193.47,5.83874322]
[1761335685463,4.15013073,193.53,193.47,67.83874322]
[1761335685863,9.31738066,193.53,193.47,67.83874322]
[1761335686073,4.15013073,193.52,193.47,67.83874322]
[1761335686378,4.15013073,193.52,193.47,62.67]
[1761335686593,3.47013073,193.49,193.47,62.0]
[1761335686761,3.47013073,193.48,193.47,62.0]
[1761335686959,3.47013073,193.48,193.43,62.67]
[1761335687158,3.47013073,193.47,193.43,62.67]
[1761335687370,3.47013073,193.46,193.43,62.67]
[1761335687965,3.47013073,193.46,193.43,67.83981414]
[1761335689074,3.47013073,193.44,193.43,62.0]
[1761335689469,4.14013073,193.44,193.43,62.0]
[1761335690291,9.30969235,193.44,193.37,62.0]
[1761335690467,3.47013073,193.38,193.37,62.0]
[1761335692985,3.47013073,193.39,193.37,62.0]
[1761335693391,0.67,193.44,193.38,0.69]
[1761335693688,3.47013073,193.43,193.38,62.69]
[1761335694091,4.14013073,193.43,193.38,62.69]
[1761335694483,4.14013073,193.43,193.38,67.17093923]
[1761335694687,4.14013073,193.43,193.39,0.69]
[1761335695287,3.47013073,193.43,193.39,0.69]
[1761335695501,3.47013073,193.43,193.39,5.86082349]
[1761335695888,3.47013073,193.43,193.4,0.69]
[1761335696101,3.47013073,193.44,193.4,0.69]
[1761335697178,44.83944611,193.45,193.4,5.8606129]
[1761335697488,0.66,193.48,193.4,71.33074363]
[1761335697810,5.1679787,193.5,193.43,3.47013073]
[1761335697988,3.47013073,193.48,193.42,3.47013073]
[1761335698183,3.47013073,193.47,193.41,0.65]
[1761335699077,9.29874451,193.48,193.42,5.17009616]
[1761335699696,0.66,193.48,193.42,9.29022689]
[1761335700304,3.47013073,193.43,193.39,22.88]
[1761335700509,3.47013073,193.41,193.37,0.65]
[1761335700790,40.35013073,193.42,193.36,0.75]
[1761335701000,4.13013073,193.42,193.37,0.65]
[1761335701202,0.66,193.42,193.37,5.82126262]
[1761335701792,4.13013073,193.42,193.37,5.82126262]
[1761335701981,8.64011465,193.43,193.37,5.17126262]
[1761335702183,8.64011465,193.43,193.38,0.65]
[1761335702481,40.35013073,193.44,193.38,0.65]
[1761335702695,3.47013073,193.43,193.37,5.17126262]
[1761335702890,4.13013073,193.43,193.37,5.17126262]
[1761335703289,4.13013073,193.42,193.37,5.17126262]
[1761335703489,3.47013073,193.41,193.36,5.9216738]
[1761335704300,3.47013073,193.41,193.36,0.1]
[1761335704513,4.13013073,193.4,193.36,62.1]
[1761335704819,4.13013073,193.4,193.36,67.27163744]
[1761335705018,0.66,193.4,193.36,67.27163744]
[1761335705184,8.64072712,193.41,193.36,62.1]
[1761335705388,0.66,193.39,193.36,62.1]
[1761335705581,4.13013073,193.39,193.36,62.1]
[1761335706082,0.66,193.38,193.36,62.1]
[1761335706502,4.13013073,193.38,193.36,62.1]
[1761335706700,5.83002335,193.43,193.37,0.65]
[1761335706913,36.22,193.41,193.37,62.0]
[1761335707093,39.69013073,193.41,193.37,62.0]
[1761335707299,45.52062691,193.41,193.37,62.0]
[1761335708300,8.64081513,193.4,193.37,62.0]
[1761335708696,0.66,193.39,193.37,62.0]
[1761335708891,9.30081513,193.4,193.37,62.0]
[1761335709294,4.13013073,193.39,193.37,62.0]
[1761335709490,5.1706844,193.4,193.37,62.0]
[1761335709709,9.30081513,193.4,193.37,62.0]
[1761335710110,4.13013073,193.39,193.37,62.0]
[1761335710515,9.30112333,193.39,193.37,62.0]
[1761335714112,9.30112333,193.39,193.37,62.65]
[1761335714113,36.2,193.39,193.37,62.65]
[1761335714490,36.2,193.39,193.37,62.0]
[1761335716297,5.17068102,193.4,193.37,62.0]
[1761335716503,36.18,193.39,193.37,62.0]
[1761335718210,41.35092158,193.39,193.37,62.0]
[1761335718431,44.82105231,193.39,193.37,62.0]
[1761335719014,0.66,193.38,193.37,62.0]
[1761335719211,4.13013073,193.38,193.36,62.1]
[1761335719400,8.64156373,193.37,193.36,62.1]
[1761335719601,9.36156373,193.37,193.36,62.1]
[1761335720207,9.36156373,193.37,193.36,0.1]
[1761335721715,4.19013073,193.37,193.36,0.1]
[1761335721900,8.64135951,193.38,193.36,0.1]
[1761335722521,3.47013073,193.4,193.36,0.76]
[1761335722731,36.18,193.39,193.36,0.76]
[1761335724113,41.35090492,193.39,193.36,0.76]
[1761335725530,36.18,193.39,193.36,0.76]
[1761335727534,0.72,193.38,193.36,0.1]
[1761335727910,2.22666043,193.37,193.36,0.1]
[1761335728336,2.94666043,193.37,193.36,0.1]
[1761335729128,8.11809343,193.37,193.36,0.1]
[1761335731060,18.99456864,193.37,193.36,0.1]
[1761335731233,10.87647521,193.36,193.27,0.66]
[1761335731420,2.22666043,193.31,193.28,0.66]
[1761335731624,38.38666043,193.31,193.28,0.66]
[1761335732237,2.22666043,193.3,193.26,22.88]
[1761335732533,2.22666043,193.3,193.27,0.66]
[1761335734434,36.16,193.29,193.27,0.66]
[1761335734635,38.38666043,193.29,193.27,0.66]
[1761335736032,38.38666043,193.29,193.26,28.05432655]
[1761335736236,39.10666043,193.29,193.26,28.05432655]
[1761335736435,38.38666043,193.29,193.26,28.05432655]
[1761335736644,38.38666043,193.29,193.26,28.71432655]
[1761335737154,5.17276559,193.33,193.27,0.66]
[1761335737450,2.22666043,193.31,193.27,0.66]
[1761335737749,2.22666043,193.3,193.27,0.66]
[1761335738246,2.22666043,193.3,193.27,5.83388949]
[1761335738647,2.22666043,193.3,193.28,0.66]
[1761335739537,2.22666043,193.3,193.27,5.17388949]
[1761335739839,2.22666043,193.3,193.28,0.66]
[1761335742447,2.22666043,193.31,193.28,5.83383341]
[1761335742751,38.36666043,193.31,193.28,5.83383341]
[1761335742955,2.22666043,193.31,193.29,0.66]
[1761335743152,38.36666043,193.31,193.29,0.66]
[1761335743357,38.36666043,193.31,193.28,5.17383341]
[1761335743529,38.36666043,193.31,193.28,0.66]
[1761335743733,2.22666043,193.3,193.28,0.66]
[1761335744233,38.36666043,193.31,193.28,0.66]
[1761335746860,2.22666043,193.3,193.27,0.66]
[1761335747636,2.22666043,193.3,193.27,5.83409473]
[1761335751355,2.22666043,193.3,193.27,5.17409473]
[1761335751559,2.22666043,193.3,193.28,0.71]
[1761335751763,2.22666043,193.31,193.28,0.71]
[1761335751968,5.83251816,193.33,193.28,5.88380589]
[1761335751969,2.22666043,193.33,193.28,5.88380589]
[1761335752144,36.1,193.32,193.28,5.88380589]
[1761335752357,36.1,193.32,193.29,0.71]
[1761335757570,36.1,193.32,193.29,5.88347606]
[1761335758075,36.08,193.34,193.3,2.22666043]
[1761335758373,36.08,193.34,193.3,0.7]
[1761335758576,36.08,193.34,193.31,0.7]
[1761335759275,44.18891338,193.34,193.31,0.7]
[1761335759448,8.10891338,193.34,193.31,0.7]
[1761335759655,36.08,193.33,193.31,0.7]
[1761335759860,39.01666043,193.33,193.28,5.17382577]
[1761335760059,2.22666043,193.32,193.28,5.17382577]
[1761335760254,2.22666043,193.32,193.29,0.7]
[1761335760572,0.71,193.32,193.28,5.17382577]
[1761335760778,36.08,193.31,193.29,0.7]
[1761335761380,36.08,193.31,193.29,5.87336633]
[1761335762565,36.08,193.31,193.29,5.17336633]
[1761335762766,36.08,193.31,193.29,5.87336633]
[1761335769905,2.93666043,193.33,193.27,18.10938064]
[1761335770081,36.06,193.32,193.3,0.7]
[1761335771175,36.06,193.32,193.29,0.7]
[1761335772002,36.06,193.32,193.29,5.87335054]
[1761335772402,8.1083686,193.36,193.3,0.7]
[1761335772581,38.28666043,193.35,193.3,0.7]
[1761335772786,36.77,193.35,193.3,0.7]
[1761335773082,0.71,193.34,193.3,0.7]
[1761335774281,5.88227783,193.34,193.3,0.7]
[1761335777479,5.88227783,193.34,193.27,9.4630682]
[1761335777480,2.93666043,193.33,193.27,9.4630682]
[1761335777680,2.22666043,193.3,193.26,28.05430104]
[1761335778096,0.71,193.29,193.26,28.05430104]
[1761335778302,0.71,193.29,193.26,28.75430104]
[1761335778474,2.93666043,193.3,193.26,28.75430104]
[1761335778881,36.06,193.29,193.26,28.75430104]
[1761335779085,36.06,193.29,193.27,0.7]
[1761335780709,36.06,193.29,193.27,5.87409642]
[1761335781788,36.06,193.29,193.27,5.17409642]
[1761335782810,36.06,193.29,193.26,28.05431826]
[1761335782985,36.06,193.29,193.26,28.75431826]
[1761335783315,36.06,193.29,193.27,0.7]
[1761335784507,36.06,193.29,193.27,5.87402841]
[1761335785006,36.06,193.29,193.28,0.7]
[1761335785385,12.92934424,193.36,193.28,5.87374974]
[1761335785590,12.92934424,193.36,193.29,3.48322752]
[1761335785591,36.06,193.35,193.29,3.48322752]
[1761335785792,36.76,193.35,193.29,4.18322752]
[1761335785995,36.76,193.35,193.3,0.7]
[1761335786293,39.54322752,193.35,193.3,0.7]
[1761335786499,0.7,193.34,193.3,0.7]